lending/lending_fUSD_20241012
["ID","MTS","AMOUNT","RATE_DAILY","PERIOD"]
[340160048,1728711491505,-614.0346,0.000109,2]
[340160049,1728711491526,-500.0,0.000109,2]
[340160050,1728711491550,-82286.3452,0.000109,2]
[340160051,1728711491573,-207.0112,0.000109,2]
[340160052,1728711491595,-164.38861932,0.000109,2]
[340160053,1728711491619,-7793.76850163,0.000109,2]
[340160055,1728711808004,388.08,8.616e-05,2]
[340160062,1728711966284,229.21468449,9.888e-05,2]
[340160063,1728711987618,250.0,0.00010224,2]
[340160163,1728712231616,-158.91,0.0001029,2]
[340160164,1728712231625,-672.06,0.00010557,2]
[340160165,1728712231635,-12459.03,0.00010559,2]
[340160166,1728712231644,-388.08,0.0001088,2]
[340160167,1728712231653,-153.82164483,0.00010899,2]
[340160168,1728712231664,-846.17835517,0.00010899,2]
[340160169,1728712231674,-2370.32269623,0.00010899,2]
[340160170,1728712231683,-1344.65576104,0.00010899,2]
[340160171,1728712231692,-897.50129837,0.000109,2]
[340160172,1728712231701,-24603.7028,0.000109,2]
[340160173,1728712231710,-173.507078,0.000109,2]
[340160174,1728712231718,-7500.0,0.000109,2]
[340160175,1728712231727,-4554.94883118,0.000109,2]
[340160176,1728712231736,-338.46791679,0.000109,2]
[340160177,1728712231745,-1000.0,0.000109,2]
[340160178,1728712231754,-2629.7743081,0.000109,2]
[340160179,1728712231765,-515.9268084,0.000109,2]
[340160180,1728712231774,-171.643,0.00010945,2]
[340160181,1728712231783,-200.0,0.00010945,2]
[340160182,1728712231792,-322.67,0.00010959,2]
[340160183,1728712231800,-157.08,0.00010959,2]
[340160184,1728712231810,-503.21870875,0.00010973,2]
[340160185,1728712231819,-6331.24843604,0.00011,2]
[340160187,1728712237565,-10485.7651322,0.000109,2]
[340160188,1728712237621,-253.7732008,0.000109,2]
[340160189,1728712237786,-1296.180267,0.000109,2]
[340160190,1728712237795,-153611.67456113,0.00011,2]
[340160191,1728712237843,-5929.53561018,0.00011,2]
[340160192,1728712237902,-1556.66922992,0.00011,2]
[340160206,1728712239506,-326076.45266988,0.00011,2]
[340160207,1728712239617,-2994.36697904,0.00011,2]
[340160208,1728712239841,-13253.22423378,0.00011,2]
[340160218,1728712242829,-549.999999,0.00011,2]
[340160219,1728712242842,-500.24295542,0.00011,2]
[340160220,1728712242887,-564.74894883,0.00011,2]
[340160290,1728712255161,1345.11857921,0.00010999,3]
[340160291,1728712255195,1345.11857921,0.00010999,3]
[340160292,1728712255229,1345.11857921,0.00010999,3]
[340160293,1728712255263,1345.11857921,0.00010999,3]
[340160294,1728712255298,1345.11857921,0.00010999,3]
[340160295,1728712255332,1345.11857921,0.00010999,3]
[340160296,1728712255372,1345.11857921,0.00010999,3]
[340160297,1728712255407,795.97630373,0.00010999,3]
[340160298,1728712255435,549.14227548,0.00010999,3]
[340160299,1728712255474,1345.11857921,0.00010999,3]
[340160300,1728712255510,1345.11857921,0.00010999,3]
[340160301,1728712255545,1345.11857921,0.00010999,3]
[340160302,1728712255582,1345.11857921,0.00010999,3]
[340160303,1728712285869,300.0,0.000102,3]
[340160304,1728712288023,600.0,0.000103,3]
[340160305,1728712290153,900.0,0.000104,3]
[340160306,1728712292216,1200.0,0.000105,3]
[340160307,1728712294317,1500.0,0.000106,3]
[340160308,1728712296412,300.0,0.000107,3]
[340160309,1728712298502,300.0,0.000108,3]
[340160310,1728712300603,300.0,0.000109,3]
[340160311,1728712316052,781.8515,0.0001019,2]
[340160312,1728712319569,378.83,8.425e-05,2]
[340160314,1728712533139,250.0,0.00010224,2]
[340160315,1728712673368,250.0,0.00010197,2]
[340160316,1728712781637,537.65,0.00010192,2]
[340160317,1728712819943,389.39,8.296e-05,2]
[340160318,1728712961334,23247.08,0.00010198,2]
[340160319,1728713000381,181.37,0.00010198,2]
[340160320,1728713097286,250.0,0.00010201,2]
[340160326,1728713154634,242.73,0.00010143,2]
[340160327,1728713186577,250.0,0.0001015,2]
[340160331,1728713306224,419.06,8.376e-05,2]
[340160347,1728713431610,-200.0,0.00010265,2]
[340160348,1728713431619,-569.88,0.00010297,2]
[340160349,1728713431628,-1035.513058,0.00010453,2]
[340160350,1728713431640,-703.37788318,0.00010453,2]
[340160351,1728713431651,-1261.10905882,0.00010453,2]
[340160352,1728713431660,-419.06,0.0001064,2]
[340160353,1728713431670,-150.0,0.00010732,2]
[340160354,1728713431679,-300.0,0.00010732,2]
[340160355,1728713431688,-812.0,0.00010733,2]
[340160356,1728713431698,-629.427,0.00010733,2]
[340160357,1728713431707,-449.0,0.00010733,2]
[340160358,1728713431716,-1244.0,0.00010733,2]
[340160359,1728713431725,-150.0,0.00010733,2]
[340160360,1728713431734,-935.0,0.00010733,2]
[340160361,1728713431744,-560.0,0.00010733,2]
[340160362,1728713431753,-1908.0,0.00010733,2]
[340160363,1728713431763,-555.0,0.00010733,2]
[340160364,1728713431772,-3356.0,0.00010733,2]
[340160365,1728713431781,-1910.0,0.00010733,2]
[340160366,1728713431790,-808.0,0.00010733,2]
[340160367,1728713431799,-516.31254715,0.00010779,2]
[340160368,1728713431808,-614.0346,0.000109,2]
[340160369,1728713431817,-500.0,0.000109,2]
[340160370,1728713431826,-82286.3452,0.000109,2]
[340160371,1728713431835,-4888.0911,0.000109,2]
[340160372,1728713431845,-1000.0,0.000109,2]
[340160373,1728713431854,-7793.7685,0.000109,2]
[340160374,1728713431863,-3743.2768,0.000109,2]
[340160375,1728713431872,-207.0112,0.000109,2]
[340160376,1728713431881,-1552.0,0.000109,2]
[340160377,1728713431889,-13526.0,0.00010923,2]
[340160378,1728713431898,-5919.064,0.00010923,2]
[340160379,1728713431907,-155.548,0.00010923,2]
[340160380,1728713431916,-1150.0,0.00010923,2]
[340160381,1728713431925,-156.01,0.00010959,2]
[340160382,1728713431934,-258.13,0.00010959,2]
[340160383,1728713431943,-500.18923249,0.00010973,2]
[340160384,1728713431953,-614.0,0.00011,2]
[340160385,1728713431962,-59455.52438585,0.00011,2]
[340160386,1728713431974,-420.14350431,0.00011,2]
[340160387,1728713431985,-340.78735789,0.00011,2]
[340160388,1728713432001,-5878.67181557,0.00011,2]
[340160389,1728713432012,-1951.37137078,0.00011,2]
[340160390,1728713432023,-1198.16775,0.00011,2]
[340160393,1728713432035,-500.0,0.00011,2]
[340160395,1728713432045,-255.5570155,0.00011,2]
[340160396,1728713432057,-554.04576987,0.00011,2]
[340160397,1728713432071,-640.09000008,0.00011,2]
[340160398,1728713437834,-1066.97237905,0.0001078,2]
[340160399,1728713437844,-759.22714508,0.000109,2]
[340160400,1728713437855,-4039.8464358,0.000109,2]
[340160401,1728713437867,-2700.92641912,0.000109,2]
[340160402,1728713437876,-551.0,0.00011,2]
[340160403,1728713437886,-26657.66600353,0.00011,2]
[340160404,1728713438007,-730667.8653309,0.00011,2]
[340160405,1728713438018,-275.96458678,0.00011,2]
[340160406,1728713438029,-539.31540656,0.00011,2]
[340160407,1728713438064,-772.8827422,0.00011,2]
[340160408,1728713438123,-49022.48890501,0.00011,2]
[340160409,1728713438135,-310.24010705,0.00011,2]
[340160412,1728713439636,-4399.47208,0.00011,2]
[340160413,1728713439697,-944.55960295,0.00011,2]
[340160414,1728713439710,-367.28,0.00011,2]
[340160415,1728713439728,-33939.77810365,0.00011,2]
[340160416,1728713440036,-362.96367052,0.00011,2]
[340160423,1728713442935,-5007.98400001,0.00011,2]
[340160424,1728713442969,-327.19549029,0.00011,2]
[340160425,1728713442980,-47168.67307927,0.00011,2]
[340160430,1728713445628,-61529.04051777,0.00011,2]
[340160431,1728713445686,-1203.491268,0.00011,2]
[340160432,1728713445856,-435.93874686,0.00011,2]
[340160513,1728713627857,167.14,0.00010146,2]
[340160514,1728713690261,250.0,0.00010154,2]
[340160515,1728713806062,242.72,0.00010122,2]
[340160516,1728713822860,544.09,0.00010138,2]
[340160517,1728713844737,435.63,8.219e-05,2]
[340160518,1728713889280,-282.55,0.00010277,2]
[340160519,1728713889302,-1141.04418473,0.00010453,2]
[340160520,1728713889324,-435.63,0.00010482,2]
[340160521,1728713889345,-4269.22,0.0001053,2]
[340160522,1728713889366,-1145.73997612,0.0001078,2]
[340160523,1728713889387,-159.96,0.00010815,2]
[340160524,1728713889408,-300.0,0.00010872,2]
[340160525,1728713889429,-500.0,0.00010873,2]
[340160526,1728713889450,-500.0,0.00010873,2]
[340160527,1728713889470,-500.0,0.00010873,2]
[340160528,1728713889491,-174.95879954,0.00010873,2]
[340160529,1728713889512,-150.0,0.00010899,2]
[340160530,1728713889533,-1622.1573,0.000109,2]
[340160531,1728713889552,-5673.4177,0.000109,2]
[340160532,1728713889574,-36272.9649,0.000109,2]
[340160533,1728713889596,-72681.3319,0.000109,2]
[340160534,1728713889619,-13986.9383,0.000109,2]
[340160535,1728713889640,-195.295982,0.000109,2]
[340160536,1728713889666,-1000.0,0.000109,2]
[340160537,1728713889686,-164.38861932,0.000109,2]
[340160538,1728713889707,-150.02929345,0.000109,2]
[340160539,1728713889726,-500.0,0.00010942,2]
[340160540,1728713889752,-939.47,0.00010959,2]
[340160541,1728713889773,-214.86,0.00010959,2]
[340160542,1728713889794,-217.21,0.00010959,2]
[340160543,1728713889814,-150.0,0.00010959,2]
[340160544,1728713889834,-183.0,0.00010959,2]
[340160545,1728713889855,-500.0,0.00010973,2]
[340160546,1728713889875,-439.84588561,0.00010999,2]
[340160547,1728713889895,-3155.34936454,0.00010999,2]
[340160548,1728713889918,-500.0,0.00010999,2]
[340160549,1728713889941,-431.35467128,0.00010999,2]
[340160550,1728713889963,-545.0,0.00011,2]
[340160551,1728713889986,-4527248.28312341,0.00011,2]
[340160552,1728714125685,5678.12,0.00010219,2]
[340160553,1728714140775,170.68,0.00010213,2]
[340160554,1728714245426,250.0,0.00010207,2]
[340160556,1728714395600,550.0,0.0001,2]
[340160557,1728714406826,170.92,8.163e-05,2]
[340160558,1728714407932,564.72,0.00010204,2]
[340160571,1728714509621,-150.0,0.00010731,2]
[340160572,1728714509642,-1500.0,0.00010739,2]
[340160573,1728714509663,-300.0,0.00010772,2]
[340160574,1728714509689,-150.0,0.00010772,2]
[340160575,1728714509710,-3900.0,0.00010773,2]
[340160583,1728714521264,150.58,0.00010102,2]
[340160594,1728714620055,23900.0,0.00010073,2]
[340160604,1728714631855,-180.41,0.00010621,2]
[340160606,1728714631865,-91.7746872,0.00010773,2]
[340160608,1728714632063,-312.02099594,0.00010773,2]
[340160609,1728714632075,-567.14,0.00010773,2]
[340160610,1728714632086,-4576.33692265,0.00010773,2]
[340160611,1728714632097,-275.83579421,0.00010773,2]
[340160612,1728714632106,-1000.0,0.000108,2]
[340160613,1728714632115,-150.0,0.00010814,2]
[340160614,1728714632125,-150.0,0.0001084,2]
[340160615,1728714632134,-150.0,0.00010865,2]
[340160616,1728714632143,-150.0,0.00010882,2]
[340160617,1728714632152,-1668.10913478,0.0001089,2]
[340160618,1728714632161,-999.99,0.0001089,2]
[340160619,1728714632170,-150.99,0.0001089,2]
[340160620,1728714632180,-150.0,0.00010892,2]
[340160621,1728714632191,-1000.0,0.00010899,2]
[340160622,1728714632199,-150.99,0.00010899,2]
[340160623,1728714632208,-858.42,0.00010899,2]
[340160625,1728714632217,-150.0,0.00010899,2]
[340160627,1728714632226,-34.32814836,0.000109,2]
[340160634,1728714637878,-1125.33968256,0.000109,2]
[340160636,1728714638024,-42000.79576908,0.000109,2]
[340160637,1728714638034,-294.411,0.000109,2]
[340160638,1728714638044,-9056.97392856,0.000109,2]
[340160639,1728714638053,-261.7196,0.000109,2]
[340160640,1728714638062,-154.62586306,0.000109,2]
[340160641,1728714638072,-488.51108,0.000109,2]
[340160642,1728714638081,-2051.0037,0.000109,2]
[340160643,1728714638091,-169.22076499,0.000109,2]
[340160644,1728714638100,-1196.0,0.000109,2]
[340160645,1728714638110,-252.68918655,0.00010901,2]
[340160646,1728714638119,-172.907,0.00010952,2]
[340160647,1728714638128,-157.84,0.00010959,2]
[340160648,1728714638138,-243.09,0.00010959,2]
[340160649,1728714638147,-320.29,0.00010959,2]
[340160650,1728714638156,-564.8212458,0.00010973,2]
[340160651,1728714638165,-183.99469233,0.00010973,2]
[340160652,1728714638175,-500.0,0.00010973,2]
[340160653,1728714638184,-337.29132928,0.00010973,2]
[340160654,1728714638193,-299.99,0.00010977,2]
[340160655,1728714638203,-5173.97,0.00010977,2]
[340160656,1728714638212,-661.71,0.00010977,2]
[340160657,1728714638222,-2319.29,0.00010977,2]
[340160658,1728714638231,-555.35,0.00010977,2]
[340160659,1728714638240,-201.53,0.00010977,2]
[340160660,1728714638249,-499.99,0.00010977,2]
[340160661,1728714638259,-218.54657767,0.0001099,2]
[340160662,1728714638268,-218.54657767,0.0001099,2]
[340160663,1728714638280,-218.54657767,0.0001099,2]
[340160664,1728714638290,-205.86921958,0.00010999,2]
[340160665,1728714638299,-239.42979715,0.00010999,2]
[340160666,1728714638308,-3256.2,0.00010999,2]
[340160667,1728714638318,-168.91110523,0.00010999,2]
[340160668,1728714638327,-500.0,0.00010999,2]
[340160669,1728714638336,-500.0,0.00010999,2]
[340160670,1728714638346,-500.0,0.00010999,2]
[340160671,1728714638356,-399.10426944,0.00010999,2]
[340160672,1728714638365,-1347844.97765208,0.00011,2]
[340160673,1728714638376,-1080.01206101,0.00011,2]
[340160674,1728714638387,-2424.99999999,0.00011,2]
[340160675,1728714638398,-691.4869725,0.00011,2]
[340160676,1728714638409,-5124.74242063,0.00011,2]
[340160677,1728714638420,-5906.63080696,0.00011,2]
[340160678,1728714638432,-54242.92994086,0.00011,2]
[340160681,1728714639816,-1399.85886565,0.00011,2]
[340160683,1728714640076,-2989.22859498,0.00011,2]
[340160684,1728714640088,-657.01500003,0.00011,2]
[340160685,1728714640099,-468.5,0.00011,2]
[340160686,1728714640236,-42216.36408464,0.00011,2]
[340160696,1728714642810,-1128.36507738,0.0001078,2]
[340160697,1728714642820,-2048.97452262,0.00011,2]
[340160698,1728714643079,-4534.5704,0.00011,2]
[340160699,1728714643090,-275.01000006,0.00011,2]
[340160700,1728714643101,-555.49999972,0.00011,2]
[340160702,1728714645789,-300.05858688,0.000109,2]
[340160703,1728714645798,-383.24,0.00010959,2]
[340160704,1728714645807,-888.09017357,0.00011,2]
[340160705,1728714645919,-290304.81722554,0.00011,2]
[340160706,1728714645934,-902.39616762,0.00011,2]
[340160708,1728714646265,-0.92189963,0.00011,2]
[340160709,1728714646698,-2750.44158674,0.00011,2]
[340160712,1728714736219,442.77,8.341e-05,2]
[340160713,1728714826511,250.0,0.0001006,2]
[340160714,1728714901511,548.22,0.00010026,2]
[340160715,1728714902258,445.32936313,0.0002152,90]
[340160716,1728715271236,168.9,0.00010119,2]
[340160717,1728715300913,200.0,0.00010119,2]
[340160719,1728715336341,250.0,0.00010116,2]
[340160720,1728715402719,561.42,0.00010155,2]
[340160721,1728715447642,488.0,0.0001,7]
[340160722,1728715538694,479.14,8.275e-05,2]
[340160767,1728715706331,23900.0,0.00010183,2]
[340160778,1728715832015,-176.37,0.00010396,2]
[340160779,1728715832025,-244.446,0.00010453,2]
[340160780,1728715832037,-784.96507699,0.00010453,2]
[340160781,1728715832046,-174.95,0.00010488,2]
[340160782,1728715832056,-174.95,0.00010514,2]
[340160783,1728715832065,-479.14,0.00010539,2]
[340160784,1728715832074,-174.95,0.0001054,2]
[340160785,1728715832083,-1054.00336271,0.0001078,2]
[340160786,1728715832092,-428.25568314,0.00010899,2]
[340160787,1728715832101,-150.0,0.00010899,2]
[340160788,1728715832110,-409.94628511,0.000109,2]
[340160789,1728715832122,-573.88723251,0.000109,2]
[340160790,1728715832133,-792.5901174,0.000109,2]
[340160791,1728715832145,-544.28526611,0.000109,2]
[340160792,1728715832156,-1298.29851612,0.000109,2]
[340160793,1728715832167,-1830.0504098,0.000109,2]
[340160794,1728715832178,-70.13087295,0.000109,2]
[340160795,1728715832187,-257.7133,0.000109,2]
[340160796,1728715832197,-1156.8903,0.000109,2]
[340160797,1728715832206,-500.0,0.000109,2]
[340160798,1728715832215,-612.2524,0.000109,2]
[340160799,1728715832224,-2448.82999144,0.000109,2]
[340160800,1728715832235,-2613.10872722,0.000109,2]
[340160801,1728715832249,-661.82674922,0.000109,2]
[340160802,1728715832265,-261.39657885,0.000109,2]
[340160803,1728715832276,-1974.8225,0.000109,2]
[340160804,1728715832286,-598.97184433,0.000109,2]
[340160805,1728715832298,-2405.0,0.000109,2]
[340160806,1728715838194,-18396.63364085,0.000109,2]
[340160807,1728715838205,-1151.77269582,0.000109,2]
[340160808,1728715838216,-4258.63727227,0.000109,2]
[340160809,1728715838226,-214.0487,0.000109,2]
[340160810,1728715838235,-2199.08145982,0.000109,2]
[340160811,1728715838376,-4459.2594,0.000108,2]
[340160812,1728715838386,-13027.61794018,0.000109,2]
[340160813,1728715838395,-1928.051,0.000109,2]
[340160814,1728715838404,-429.44,0.000109,2]
[340160815,1728715838413,-534.81,0.000109,2]
[340160816,1728715838422,-150.0,0.000109,2]
[340160817,1728715838432,-150.0,0.000109,2]
[340160818,1728715838441,-359.09,0.000109,2]
[340160819,1728715838450,-429.44,0.000109,2]
[340160820,1728715838459,-150.0,0.000109,2]
[340160821,1728715838468,-359.09,0.000109,2]
[340160822,1728715838478,-150.0,0.000109,2]
[340160823,1728715838488,-150.0,0.000109,2]
[340160825,1728715838497,-150.0,0.000109,2]
[340160827,1728715838506,-533.93,0.000109,2]
[340160829,1728715838515,-150.0,0.000109,2]
[340160830,1728715838524,-150.0,0.000109,2]
[340160832,1728715838533,-429.44,0.000109,2]
[340160834,1728715838542,-359.09,0.000109,2]
[340160836,1728715838551,-429.44,0.000109,2]
[340160838,1728715838560,-150.0,0.000109,2]
[340160840,1728715838570,-150.0,0.000109,2]
[340160842,1728715838579,-363.34,0.000109,2]
[340160844,1728715838588,-150.0,0.000109,2]
[340160846,1728715838598,-150.0,0.000109,2]
[340160847,1728715838607,-1291.1581,0.000109,2]
[340160849,1728715838616,-359.09,0.000109,2]
[340160851,1728715838626,-434.83,0.000109,2]
[340160853,1728715838635,-150.0,0.000109,2]
[340160855,1728715838645,-150.0,0.000109,2]
[340160871,1728715838795,-290.31468299,0.000109,2]
[340160873,1728715838808,-150.0,0.000109,2]
[340160874,1728715838817,-429.44,0.000109,2]
[340160876,1728715838827,-151.85,0.000109,2]
[340160878,1728715838843,-150.0,0.000109,2]
[340160880,1728715838853,-704.84,0.000109,2]
[340160882,1728715838863,-150.0,0.000109,2]
[340160884,1728715838873,-378.82,0.000109,2]
[340160886,1728715838883,-359.09,0.000109,2]
[340160888,1728715838894,-429.44,0.000109,2]
[340160890,1728715838903,-150.0,0.000109,2]
[340160892,1728715838913,-150.0,0.000109,2]
[340160894,1728715838922,-359.09,0.000109,2]
[340160896,1728715838931,-150.0,0.000109,2]
[340160898,1728715838941,-429.44,0.000109,2]
[340160900,1728715838951,-150.0,0.000109,2]
[340160901,1728715838961,-359.09,0.000109,2]
[340160903,1728715838971,-193.417,0.000109,2]
[340160905,1728715838980,-150.0,0.000109,2]
[340160907,1728715838990,-150.0,0.000109,2]
[340160909,1728715838999,-429.44,0.000109,2]
[340160911,1728715839009,-359.09,0.000109,2]
[340160913,1728715839018,-150.0,0.000109,2]
[340160914,1728715839028,-429.44,0.000109,2]
[340160915,1728715839037,-359.09,0.000109,2]
[340160916,1728715839047,-150.0,0.000109,2]
[340160917,1728715839056,-429.44,0.000109,2]
[340160918,1728715839065,-336.67,0.000109,2]
[340160919,1728715839074,-150.0,0.000109,2]
[340160920,1728715839084,-150.0,0.000109,2]
[340160921,1728715839093,-429.44,0.000109,2]
[340160922,1728715839103,-358.92,0.000109,2]
[340160923,1728715839112,-429.44,0.000109,2]
[340160924,1728715839122,-150.0,0.000109,2]
[340160925,1728715839131,-150.0,0.000109,2]
[340160926,1728715839141,-359.09,0.000109,2]
[340160927,1728715839151,-327.86,0.000109,2]
[340160928,1728715839160,-150.0,0.000109,2]
[340160929,1728715839169,-297.51,0.000109,2]
[340160930,1728715839178,-359.09,0.000109,2]
[340160931,1728715839187,-150.0,0.000109,2]
[340160932,1728715839196,-858.14,0.000109,2]
[340160933,1728715839207,-359.09,0.000109,2]
[340160934,1728715839216,-150.0,0.000109,2]
[340160935,1728715839226,-429.44,0.000109,2]
[340160936,1728715839235,-429.44,0.000109,2]
[340160937,1728715839245,-150.0,0.000109,2]
[340160938,1728715839254,-359.09,0.000109,2]
[340160939,1728715839264,-150.0,0.000109,2]
[340160940,1728715839274,-534.81,0.000109,2]
[340160941,1728715839283,-150.0,0.000109,2]
[340160942,1728715839293,-359.09,0.000109,2]
[340160943,1728715839302,-436.06,0.000109,2]
[340160944,1728715839311,-150.7,0.000109,2]
[340160945,1728715839321,-429.44,0.000109,2]
[340160946,1728715839330,-150.0,0.000109,2]
[340160947,1728715839339,-150.41,0.000109,2]
[340160948,1728715839348,-534.81,0.000109,2]
[340160949,1728715839357,-150.8,0.000109,2]
[340160950,1728715839366,-150.0,0.000109,2]
[340160951,1728715839375,-227.89,0.000109,2]
[340160952,1728715839384,-359.09,0.000109,2]
[340160953,1728715839394,-208.94796885,0.000109,2]
[340160954,1728715839409,-1000.0,0.000109,2]
[340160955,1728715839418,-7500.0,0.000109,2]
[340160956,1728715839427,-1500.0,0.000109,2]
[340160957,1728715839437,-20144.48484838,0.000109,2]
[340160958,1728715839446,-163.39267482,0.000109,2]
[340160959,1728715839456,-423.99,0.00010908,2]
[340160960,1728715839465,-755.56,0.00010908,2]
[340160961,1728715839474,-755.56,0.00010908,2]
[340160962,1728715839483,-423.99,0.00010908,2]
[340160963,1728715839493,-755.56,0.00010908,2]
[340160964,1728715839502,-423.99,0.00010908,2]
[340160965,1728715839512,-755.56,0.00010908,2]
[340160966,1728715839521,-423.99,0.00010908,2]
[340160967,1728715839530,-755.56,0.00010908,2]
[340160968,1728715839539,-423.99,0.00010908,2]
[340160969,1728715839549,-423.99,0.00010908,2]
[340160970,1728715839558,-755.56,0.00010908,2]
[340160971,1728715839568,-423.99,0.00010908,2]
[340160972,1728715839577,-755.56,0.00010908,2]
[340160973,1728715839587,-423.99,0.00010908,2]
[340160974,1728715839596,-755.56,0.00010908,2]
[340160975,1728715839606,-755.56,0.00010908,2]
[340160976,1728715839615,-423.99,0.00010908,2]
[340160977,1728715839625,-755.56,0.00010908,2]
[340160978,1728715839634,-423.99,0.00010908,2]
[340160979,1728715839643,-423.99,0.00010908,2]
[340160980,1728715839656,-736.33,0.00010908,2]
[340160981,1728715839666,-423.99,0.00010908,2]
[340160982,1728715839676,-755.56,0.00010908,2]
[340160983,1728715839685,-423.99,0.00010908,2]
[340160984,1728715839695,-755.56,0.00010908,2]
[340160985,1728715839704,-755.56,0.00010908,2]
[340160986,1728715839714,-423.99,0.00010908,2]
[340160987,1728715839724,-423.99,0.00010908,2]
[340160988,1728715839733,-755.56,0.00010908,2]
[340160989,1728715839742,-423.99,0.00010908,2]
[340160990,1728715839752,-755.56,0.00010908,2]
[340160991,1728715839761,-429.39,0.00010908,2]
[340160992,1728715839770,-764.97,0.00010908,2]
[340160993,1728715839779,-755.56,0.00010908,2]
[340160994,1728715839789,-423.99,0.00010908,2]
[340160995,1728715839799,-423.99,0.00010908,2]
[340160996,1728715839809,-755.56,0.00010908,2]
[340160997,1728715839818,-755.56,0.00010908,2]
[340160998,1728715839828,-423.99,0.00010908,2]
[340160999,1728715839837,-755.56,0.00010908,2]
[340161000,1728715839846,-423.99,0.00010908,2]
[340161001,1728715839856,-755.56,0.00010908,2]
[340161002,1728715839865,-423.99,0.00010908,2]
[340161003,1728715839875,-755.56,0.00010908,2]
[340161004,1728715839884,-423.99,0.00010908,2]
[340161005,1728715839893,-500.0,0.00010912,2]
[340161006,1728715839903,-166.6640221,0.00010948,2]
[340161007,1728715839913,-186.393,0.00010955,2]
[340161008,1728715839923,-156.88,0.00010959,2]
[340161009,1728715839932,-739.45,0.00010959,2]
[340161010,1728715839942,-194.47,0.00010959,2]
[340161011,1728715839952,-250.0,0.00010959,2]
[340161012,1728715839964,-500.0,0.00010973,2]
[340161013,1728715839975,-935793.71682283,0.00011,2]
[340161014,1728715839989,-990.63368508,0.00011,2]
[340161015,1728715840087,-31054.56248763,0.00011,2]
[340161016,1728715840256,-1759.21430931,0.00011,2]
[340161031,1728715843166,-250.0,0.00010581,2]
[340161032,1728715843176,-485.0,0.000109,2]
[340161038,1728715845998,-376.87925389,0.000109,2]
[340161039,1728715846011,-5800.59913318,0.000109,2]
[340161040,1728715846022,-294.41107699,0.000109,2]
[340161041,1728715846083,-1750.66104816,0.000109,2]
[340161042,1728715846092,-10285.7025273,0.00011,2]
[340161046,1728715916614,550.86,0.00010166,2]
[340161049,1728716093684,489.82,8.689e-05,2]
[340161050,1728716202080,550.0,0.0001,2]
[340161051,1728716408827,227.88,0.00010023,2]
[340161052,1728716436634,189.4,0.00010189,2]
[340161053,1728716453120,15737.19756946,0.0001,2]
[340161054,1728716463652,250.0,0.00010159,2]
[340161055,1728716561083,1000.0,0.00010149,2]
[340161056,1728716651207,497.69,8.24e-05,2]
[340161057,1728716666444,250.0,0.00010137,2]
[340161066,1728716786408,150.0,9.888e-05,2]
[340161070,1728716905652,525.57,0.00010182,2]